[Event "Titled Tuesday Blitz March 22 Early 2022"]
[White "Jumabayev, Rinat"]
[Black "Vogel, Roven"]
[WhiteFideId "13702661"]
[BlackFideId "12908088"]
[WhiteElo "2561"]
[BlackElo "2516"]
[Result "0-1"]
[Round "04"]
[TimeControl "180+1"]
[Date "2022.03.22"]
[WhiteClock "0:00:04"]
[BlackClock "0:00:22"]

1. d4 {[%clk 0:03:00]}  Nf6 {[%clk 0:03:00]} 2. c4 {[%clk 0:03:01]}  e6 {[%clk 0:03:00]} 3. Nf3 {[%clk 0:03:01]}  d5 {[%clk 0:03:01]} 4. g3 {[%clk 0:03:01]}  dxc4 {[%clk 0:02:56]} 5. Qa4+ {[%clk 0:03:01]}  Nbd7 {[%clk 0:02:55]} 6. Qxc4 {[%clk 0:03:01]}  a6 {[%clk 0:02:55]} 7. Bg2 {[%clk 0:03:01]}  b5 {[%clk 0:02:55]} 8. Qd3 {[%clk 0:02:56]}  Bb7 {[%clk 0:02:54]} 9. O-O {[%clk 0:02:56]}  c5 {[%clk 0:02:53]} 10. dxc5 {[%clk 0:02:55]}  Bxc5 {[%clk 0:02:49]} 11. Nc3 {[%clk 0:02:55]}  O-O {[%clk 0:02:48]} 12. Bf4 {[%clk 0:02:55]}  Qe7 {[%clk 0:02:43]} 13. Rad1 {[%clk 0:02:54]}  e5 {[%clk 0:02:42]} 14. Nxe5 {[%clk 0:02:35]}  Bxg2 {[%clk 0:02:34]} 15. Nxd7 {[%clk 0:02:35]}  Bxf1 {[%clk 0:02:33]} 16. Nxc5 {[%clk 0:02:24]}  Qxc5 {[%clk 0:02:19]} 17. Kxf1 {[%clk 0:02:11]}  Qc6 {[%clk 0:02:16]} 18. f3 {[%clk 0:02:09]}  b4 {[%clk 0:02:07]} 19. Nd5 {[%clk 0:01:59]}  Nxd5 {[%clk 0:02:07]} 20. Qxd5 {[%clk 0:02:00]}  Qxd5 {[%clk 0:02:07]} 21. Rxd5 {[%clk 0:02:01]}  Rfd8 {[%clk 0:02:08]} 22. Ra5 {[%clk 0:02:01]}  h6 {[%clk 0:02:02]} 23. h4 {[%clk 0:02:00]}  Rdc8 {[%clk 0:01:50]} 24. Bd6 {[%clk 0:01:55]}  Rc1+ {[%clk 0:01:46]} 25. Kf2 {[%clk 0:01:55]}  Rc2 {[%clk 0:01:47]} 26. Bxb4 {[%clk 0:01:09]}  Re8 {[%clk 0:01:45]} 27. g4 {[%clk 0:01:09]}  Rexe2+ {[%clk 0:01:43]} 28. Kg3 {[%clk 0:01:09]}  Rxb2 {[%clk 0:01:44]} 29. a3 {[%clk 0:01:08]}  Re6 {[%clk 0:01:36]} 30. h5 {[%clk 0:01:06]}  Rb3 {[%clk 0:01:35]} 31. Bd2 {[%clk 0:00:58]}  Rf6 {[%clk 0:01:32]} 32. Bf4 {[%clk 0:00:59]}  Rc6 {[%clk 0:01:27]} 33. g5 {[%clk 0:00:42]}  hxg5 {[%clk 0:01:11]} 34. Bxg5 {[%clk 0:00:41]}  Rcc3 {[%clk 0:01:07]} 35. Rf5 {[%clk 0:00:41]}  Rxa3 {[%clk 0:01:05]} 36. h6 {[%clk 0:00:41]}  gxh6 {[%clk 0:01:05]} 37. Bxh6 {[%clk 0:00:42]}  Rc6 {[%clk 0:01:04]} 38. Bg5 {[%clk 0:00:41]}  Rg6 {[%clk 0:01:02]} 39. Kh4 {[%clk 0:00:41]}  Ra1 {[%clk 0:00:58]} 40. f4 {[%clk 0:00:37]}  Rg1 {[%clk 0:00:46]} 41. Kh5 {[%clk 0:00:34]}  Kg7 {[%clk 0:00:40]} 42. Rc5 {[%clk 0:00:27]}  Rd6 {[%clk 0:00:38]} 43. f5 {[%clk 0:00:17]}  Rd3 {[%clk 0:00:37]} 44. f6+ {[%clk 0:00:10]}  Kh7 {[%clk 0:00:36]} 45. Rc7 {[%clk 0:00:09]}  Rd5 {[%clk 0:00:20]} 46. Rxf7+ {[%clk 0:00:08]}  Kh8 {[%clk 0:00:20]} 47. Rf8+ {[%clk 0:00:05]}  Kh7 {[%clk 0:00:19]} 48. Rf7+ {[%clk 0:00:06]}  Kg8 {[%clk 0:00:20]} 49. Rg7+ {[%clk 0:00:06]}  Kf8 {[%clk 0:00:20]} 50. Kh6 {[%clk 0:00:03]}  Rdxg5 {[%clk 0:00:19]} 51. Rxg5 {[%clk 0:00:02]}  Rxg5 {[%clk 0:00:20]} 52. Kxg5 {[%clk 0:00:02]}  a5 {[%clk 0:00:21]} 53. Kf4 {[%clk 0:00:03]}  a4 {[%clk 0:00:21]} 54. Ke3 {[%clk 0:00:03]}  a3 {[%clk 0:00:22]} 55. Kd2 {[%clk 0:00:04]}  a2 {[%clk 0:00:22]} 0-1


[Site "https://www.chess.com"]

[Event "Titled Tuesday Blitz March 22 Early 2022"]
[White "Karthikeyan, Murali"]
[Black "Fiorito, Fabian"]
[WhiteFideId "5074452"]
[BlackFideId "100200"]
[WhiteElo "2579"]
[BlackElo "2395"]
[Result "1-0"]
[Round "04"]
[TimeControl "180+1"]
[Date "2022.03.22"]
[WhiteClock "0:00:09"]
[BlackClock "0:00:26"]

1. e4 {[%clk 0:03:00]}  c6 {[%clk 0:03:00]} 2. d4 {[%clk 0:02:58]}  d5 {[%clk 0:03:00]} 3. e5 {[%clk 0:02:59]}  Bf5 {[%clk 0:03:01]} 4. h4 {[%clk 0:02:59]}  h6 {[%clk 0:02:59]} 5. Bd3 {[%clk 0:02:57]}  Bxd3 {[%clk 0:02:57]} 6. Qxd3 {[%clk 0:02:58]}  e6 {[%clk 0:02:58]} 7. Ne2 {[%clk 0:02:56]}  c5 {[%clk 0:02:57]} 8. c4 {[%clk 0:02:41]}  Nc6 {[%clk 0:02:39]} 9. cxd5 {[%clk 0:02:22]}  Qxd5 {[%clk 0:02:30]} 10. Nbc3 {[%clk 0:02:22]}  Qd7 {[%clk 0:02:19]} 11. Be3 {[%clk 0:02:06]}  cxd4 {[%clk 0:02:11]} 12. Nxd4 {[%clk 0:01:56]}  Rd8 {[%clk 0:01:45]} 13. O-O-O {[%clk 0:01:33]}  Bc5 {[%clk 0:01:29]} 14. Nxc6 {[%clk 0:01:10]}  Qxd3 {[%clk 0:01:24]} 15. Rxd3 {[%clk 0:01:10]}  Rxd3 {[%clk 0:01:25]} 16. Bxc5 {[%clk 0:01:03]}  bxc6 {[%clk 0:01:25]} 17. Bxa7 {[%clk 0:00:50]}  Ne7 {[%clk 0:01:20]} 18. Bc5 {[%clk 0:00:48]}  h5 {[%clk 0:01:16]} 19. a4 {[%clk 0:00:30]}  Kd7 {[%clk 0:01:14]} 20. Kc2 {[%clk 0:00:28]}  Rxc3+ {[%clk 0:01:06]} 21. bxc3 {[%clk 0:00:29]}  Nd5 {[%clk 0:01:07]} 22. c4 {[%clk 0:00:29]}  Nf4 {[%clk 0:01:01]} 23. Rd1+ {[%clk 0:00:27]}  Kc7 {[%clk 0:00:58]} 24. g3 {[%clk 0:00:28]}  Ng6 {[%clk 0:00:57]} 25. a5 {[%clk 0:00:24]}  Nf8 {[%clk 0:00:38]} 26. Bb6+ {[%clk 0:00:17]}  Kb7 {[%clk 0:00:35]} 27. Rd8 {[%clk 0:00:18]}  Ng6 {[%clk 0:00:35]} 28. Rd7+ {[%clk 0:00:17]}  Ka8 {[%clk 0:00:34]} 29. f4 {[%clk 0:00:15]}  Rf8 {[%clk 0:00:32]} 30. Kc3 {[%clk 0:00:09]}  f6 {[%clk 0:00:31]} 31. Rxg7 {[%clk 0:00:08]}  Nh8 {[%clk 0:00:26]} 32. exf6 {[%clk 0:00:09]}  Nf7 {[%clk 0:00:26]} 33. Bc5 {[%clk 0:00:09]} 1-0


[Site "https://www.chess.com"]

[Event "Titled Tuesday Blitz March 22 Early 2022"]
[White "Kollars, Dmitrij"]
[Black "Boros, Denes"]
[WhiteFideId "12909572"]
[BlackFideId "722340"]
[WhiteElo "2584"]
[BlackElo "2464"]
[Result "1-0"]
[Round "04"]
[TimeControl "180+1"]
[Date "2022.03.22"]
[WhiteClock "0:00:12"]
[BlackClock "0:00:08"]

1. c4 {[%clk 0:03:00]}  Nf6 {[%clk 0:02:59]} 2. Nc3 {[%clk 0:02:58]}  c5 {[%clk 0:02:59]} 3. g3 {[%clk 0:02:56]}  e6 {[%clk 0:02:58]} 4. Nf3 {[%clk 0:02:55]}  d5 {[%clk 0:02:56]} 5. cxd5 {[%clk 0:02:56]}  exd5 {[%clk 0:02:57]} 6. d4 {[%clk 0:02:57]}  cxd4 {[%clk 0:02:57]} 7. Nxd4 {[%clk 0:02:57]}  Bc5 {[%clk 0:02:58]} 8. Bg2 {[%clk 0:02:56]}  Bb6 {[%clk 0:02:58]} 9. O-O {[%clk 0:02:55]}  Nc6 {[%clk 0:02:58]} 10. Be3 {[%clk 0:02:50]}  O-O {[%clk 0:02:57]} 11. Na4 {[%clk 0:02:50]}  Ng4 {[%clk 0:02:42]} 12. Nxc6 {[%clk 0:02:49]}  bxc6 {[%clk 0:02:40]} 13. Bd4 {[%clk 0:02:47]}  Re8 {[%clk 0:02:34]} 14. e3 {[%clk 0:02:44]}  Ne5 {[%clk 0:02:30]} 15. Nxb6 {[%clk 0:02:20]}  axb6 {[%clk 0:02:29]} 16. Qb3 {[%clk 0:02:21]}  Nc4 {[%clk 0:02:17]} 17. Qc3 {[%clk 0:02:10]}  Qg5 {[%clk 0:02:04]} 18. b3 {[%clk 0:02:05]}  Na5 {[%clk 0:02:03]} 19. h4 {[%clk 0:02:00]}  Qg6 {[%clk 0:01:55]} 20. Bxb6 {[%clk 0:01:58]}  Nb7 {[%clk 0:01:54]} 21. Rfc1 {[%clk 0:01:54]}  Bd7 {[%clk 0:01:51]} 22. a4 {[%clk 0:01:49]}  Nd6 {[%clk 0:01:50]} 23. a5 {[%clk 0:01:44]}  Ne4 {[%clk 0:01:40]} 24. Qe1 {[%clk 0:01:40]}  Qf5 {[%clk 0:01:33]} 25. b4 {[%clk 0:01:35]}  g5 {[%clk 0:01:33]} 26. hxg5 {[%clk 0:01:34]}  Nxg5 {[%clk 0:01:33]} 27. f4 {[%clk 0:01:23]}  Ne4 {[%clk 0:01:15]} 28. Bd4 {[%clk 0:01:21]}  Re6 {[%clk 0:01:14]} 29. Ra2 {[%clk 0:01:21]}  Rg6 {[%clk 0:01:14]} 30. Bxe4 {[%clk 0:01:18]}  Qxe4 {[%clk 0:01:11]} 31. Qf2 {[%clk 0:00:52]}  h5 {[%clk 0:01:09]} 32. Qg2 {[%clk 0:00:47]}  Qe7 {[%clk 0:01:02]} 33. Bc5 {[%clk 0:00:42]}  Qe6 {[%clk 0:00:49]} 34. Qh2 {[%clk 0:00:39]}  Qg4 {[%clk 0:00:32]} 35. Rg2 {[%clk 0:00:39]}  Qf5 {[%clk 0:00:29]} 36. Bd4 {[%clk 0:00:34]}  Bc8 {[%clk 0:00:28]} 37. Qh4 {[%clk 0:00:28]}  Ba6 {[%clk 0:00:24]} 38. g4 {[%clk 0:00:24]}  Rxg4 {[%clk 0:00:23]} 39. Rxg4+ {[%clk 0:00:24]}  Qxg4+ {[%clk 0:00:24]} 40. Qxg4+ {[%clk 0:00:24]}  hxg4 {[%clk 0:00:25]} 41. Rxc6 {[%clk 0:00:24]}  Bd3 {[%clk 0:00:17]} 42. Rh6 {[%clk 0:00:22]}  Bh7 {[%clk 0:00:15]} 43. a6 {[%clk 0:00:22]}  Rc8 {[%clk 0:00:13]} 44. Bc5 {[%clk 0:00:21]}  Kg7 {[%clk 0:00:11]} 45. Rd6 {[%clk 0:00:20]}  Be4 {[%clk 0:00:10]} 46. a7 {[%clk 0:00:20]}  g3 {[%clk 0:00:09]} 47. Ra6 {[%clk 0:00:16]}  d4 {[%clk 0:00:10]} 48. Bxd4+ {[%clk 0:00:16]}  f6 {[%clk 0:00:10]} 49. Bxf6+ {[%clk 0:00:15]}  Kf7 {[%clk 0:00:10]} 50. Bb2 {[%clk 0:00:14]}  Ba8 {[%clk 0:00:06]} 51. Rf6+ {[%clk 0:00:11]}  Ke7 {[%clk 0:00:07]} 52. Rg6 {[%clk 0:00:11]}  Rc2 {[%clk 0:00:07]} 53. Bf6+ {[%clk 0:00:11]}  Kf7 {[%clk 0:00:07]} 54. Rxg3 {[%clk 0:00:11]}  Kxf6 {[%clk 0:00:07]} 55. Rg8 {[%clk 0:00:12]}  Rc1+ {[%clk 0:00:06]} 56. Kf2 {[%clk 0:00:11]}  Rc2+ {[%clk 0:00:06]} 57. Ke1 {[%clk 0:00:12]}  Bd5 {[%clk 0:00:02]} 58. a8=Q {[%clk 0:00:13]}  Bxa8 {[%clk 0:00:02]} 59. Rxa8 {[%clk 0:00:14]}  Rc1+ {[%clk 0:00:03]} 60. Kd2 {[%clk 0:00:14]}  Rb1 {[%clk 0:00:04]} 61. Rb8 {[%clk 0:00:13]}  Rb2+ {[%clk 0:00:04]} 62. Kc3 {[%clk 0:00:12]}  Rb1 {[%clk 0:00:05]} 63. b5 {[%clk 0:00:12]}  Kf5 {[%clk 0:00:06]} 64. b6 {[%clk 0:00:13]}  Ke4 {[%clk 0:00:07]} 65. b7 {[%clk 0:00:12]}  Kxe3 {[%clk 0:00:08]} 1-0


[Site "https://www.chess.com"]

[Event "Titled Tuesday Blitz March 22 Early 2022"]
[White "Krylov, Ivan"]
[Black "Johnson, Ben"]
[WhiteFideId "24128066"]
[BlackFideId "2010917"]
[WhiteElo "2258"]
[BlackElo "2208"]
[Result "1-0"]
[Round "04"]
[TimeControl "180+1"]
[Date "2022.03.22"]
[WhiteClock "0:00:17"]
[BlackClock "0:00:01"]

1. e4 {[%clk 0:03:00]}  c5 {[%clk 0:02:58]} 2. Nf3 {[%clk 0:03:01]}  Nc6 {[%clk 0:02:58]} 3. Bb5 {[%clk 0:03:00]}  g6 {[%clk 0:02:57]} 4. O-O {[%clk 0:02:56]}  Bg7 {[%clk 0:02:57]} 5. Nc3 {[%clk 0:02:44]}  d6 {[%clk 0:02:41]} 6. Bxc6+ {[%clk 0:02:43]}  bxc6 {[%clk 0:02:37]} 7. d3 {[%clk 0:02:43]}  e5 {[%clk 0:01:57]} 8. Be3 {[%clk 0:02:37]}  Ne7 {[%clk 0:01:55]} 9. a4 {[%clk 0:02:18]}  a5 {[%clk 0:01:51]} 10. h3 {[%clk 0:02:04]}  O-O {[%clk 0:01:49]} 11. Ne2 {[%clk 0:02:02]}  f5 {[%clk 0:01:40]} 12. exf5 {[%clk 0:02:00]}  Nxf5 {[%clk 0:01:38]} 13. Bd2 {[%clk 0:01:55]}  Nd4 {[%clk 0:01:37]} 14. Nexd4 {[%clk 0:01:46]}  exd4 {[%clk 0:01:38]} 15. Bg5 {[%clk 0:01:39]}  Qc7 {[%clk 0:01:09]} 16. Re1 {[%clk 0:01:38]}  Qf7 {[%clk 0:01:07]} 17. Re7 {[%clk 0:01:33]}  Qf5 {[%clk 0:00:57]} 18. Qd2 {[%clk 0:01:23]}  Rf7 {[%clk 0:00:31]} 19. Re8+ {[%clk 0:01:12]}  Rf8 {[%clk 0:00:31]} 20. Rae1 {[%clk 0:01:13]}  Bd7 {[%clk 0:00:16]} 21. Rxa8 {[%clk 0:01:08]}  Rxa8 {[%clk 0:00:15]} 22. Re7 {[%clk 0:01:06]}  Be6 {[%clk 0:00:15]} 23. Bh6 {[%clk 0:00:57]}  Bf6 {[%clk 0:00:12]} 24. Rb7 {[%clk 0:00:43]}  Bd5 {[%clk 0:00:05]} 25. Ng5 {[%clk 0:00:38]}  Bxg5 {[%clk 0:00:05]} 26. Bxg5 {[%clk 0:00:33]}  Rf8 {[%clk 0:00:04]} 27. Bh4 {[%clk 0:00:25]}  Rf7 {[%clk 0:00:02]} 28. Rxf7 {[%clk 0:00:18]}  Kxf7 {[%clk 0:00:03]} 29. Qxa5 {[%clk 0:00:18]}  Qg5 {[%clk 0:00:01]} 30. Bxg5 {[%clk 0:00:17]} 1-0


[Site "https://www.chess.com"]

[Event "Titled Tuesday Blitz March 22 Early 2022"]
[White "Krysa, Leandro"]
[Black "Aydin, Gulenay"]
[WhiteFideId "116807"]
[BlackFideId "34557431"]
[WhiteElo "2490"]
[BlackElo "1429"]
[Result "1-0"]
[Round "04"]
[TimeControl "180+1"]
[Date "2022.03.22"]
[WhiteClock "0:00:12"]
[BlackClock "0:00:03"]

1. e4 {[%clk 0:03:00]}  c5 {[%clk 0:02:59]} 2. Nf3 {[%clk 0:03:00]}  d6 {[%clk 0:03:00]} 3. d4 {[%clk 0:03:01]}  cxd4 {[%clk 0:03:01]} 4. Nxd4 {[%clk 0:03:01]}  Nf6 {[%clk 0:03:02]} 5. Nc3 {[%clk 0:03:02]}  g6 {[%clk 0:03:02]} 6. Be2 {[%clk 0:03:00]}  Bg7 {[%clk 0:03:03]} 7. Be3 {[%clk 0:02:59]}  a6 {[%clk 0:02:58]} 8. g4 {[%clk 0:02:58]}  b5 {[%clk 0:02:50]} 9. g5 {[%clk 0:02:58]}  Nfd7 {[%clk 0:02:50]} 10. a3 {[%clk 0:02:56]}  Bb7 {[%clk 0:02:49]} 11. f4 {[%clk 0:02:47]}  Nc6 {[%clk 0:02:48]} 12. Qd2 {[%clk 0:02:39]}  Rc8 {[%clk 0:02:47]} 13. h4 {[%clk 0:02:35]}  Nc5 {[%clk 0:02:36]} 14. h5 {[%clk 0:02:25]}  Nxd4 {[%clk 0:02:00]} 15. Bxd4 {[%clk 0:02:21]}  e5 {[%clk 0:00:56]} 16. h6 {[%clk 0:02:19]}  Bf8 {[%clk 0:00:26]} 17. fxe5 {[%clk 0:02:18]}  Nxe4 {[%clk 0:00:24]} 18. Nxe4 {[%clk 0:02:05]}  Bxe4 {[%clk 0:00:23]} 19. exd6 {[%clk 0:01:57]}  Bxh1 {[%clk 0:00:20]} 20. Qe3+ {[%clk 0:01:38]}  Kd7 {[%clk 0:00:20]} 21. Bg4+ {[%clk 0:01:29]}  Kc6 {[%clk 0:00:15]} 22. O-O-O {[%clk 0:01:19]}  Bxd6 {[%clk 0:00:11]} 23. Rxh1 {[%clk 0:01:06]}  Re8 {[%clk 0:00:09]} 24. Qf3+ {[%clk 0:00:41]}  Kc7 {[%clk 0:00:10]} 25. Bxc8 {[%clk 0:00:36]}  Qxg5+ {[%clk 0:00:07]} 26. Kb1 {[%clk 0:00:34]}  Kxc8 {[%clk 0:00:07]} 27. Qxf7 {[%clk 0:00:30]}  Qe7 {[%clk 0:00:06]} 28. Qd5 {[%clk 0:00:27]}  Kc7 {[%clk 0:00:03]} 29. Rd1 {[%clk 0:00:20]}  Qe4 {[%clk 0:00:04]} 30. Bb6+ {[%clk 0:00:20]}  Kxb6 {[%clk 0:00:04]} 31. Qxd6+ {[%clk 0:00:20]}  Kb7 {[%clk 0:00:04]} 32. Qd7+ {[%clk 0:00:19]}  Kb8 {[%clk 0:00:05]} 33. Qxh7 {[%clk 0:00:17]}  Qb7 {[%clk 0:00:03]} 34. Qxg6 {[%clk 0:00:14]}  Rh8 {[%clk 0:00:02]} 35. Qd6+ {[%clk 0:00:13]}  Qc7 {[%clk 0:00:02]} 36. Qxc7+ {[%clk 0:00:12]}  Kxc7 {[%clk 0:00:02]} 37. Rh1 {[%clk 0:00:13]}  Rh7 {[%clk 0:00:03]} 38. Rh5 {[%clk 0:00:12]}  Kd6 {[%clk 0:00:04]} 39. Kc1 {[%clk 0:00:12]}  Kc6 {[%clk 0:00:05]} 40. Kd2 {[%clk 0:00:12]}  Kd6 {[%clk 0:00:06]} 41. Kc3 {[%clk 0:00:13]}  Kc6 {[%clk 0:00:05]} 42. a4 {[%clk 0:00:13]}  bxa4 {[%clk 0:00:04]} 43. Kb4 {[%clk 0:00:13]}  Kb6 {[%clk 0:00:05]} 44. Kxa4 {[%clk 0:00:13]}  Kc6 {[%clk 0:00:06]} 45. c4 {[%clk 0:00:13]}  Kb7 {[%clk 0:00:07]} 46. b4 {[%clk 0:00:13]}  Ka7 {[%clk 0:00:07]} 47. Ka5 {[%clk 0:00:13]}  Kb7 {[%clk 0:00:08]} 48. c5 {[%clk 0:00:12]}  Ka7 {[%clk 0:00:08]} 49. Rg5 {[%clk 0:00:12]}  Rxh6 {[%clk 0:00:07]} 50. Rg7+ {[%clk 0:00:12]}  Kb8 {[%clk 0:00:07]} 51. Rd7 {[%clk 0:00:11]}  Kc8 {[%clk 0:00:07]} 52. Rd6 {[%clk 0:00:11]}  Rh1 {[%clk 0:00:02]} 53. Rxa6 {[%clk 0:00:11]}  Ra1+ {[%clk 0:00:03]} 54. Kb5 {[%clk 0:00:11]}  Rh1 {[%clk 0:00:02]} 55. Rd6 {[%clk 0:00:12]}  Kb7 {[%clk 0:00:03]} 56. Rd7+ {[%clk 0:00:12]}  Kc8 {[%clk 0:00:03]} 57. Rg7 {[%clk 0:00:13]}  Rh6 {[%clk 0:00:04]} 58. c6 {[%clk 0:00:13]}  Rh5+ {[%clk 0:00:03]} 59. Kb6 {[%clk 0:00:13]}  Rh8 {[%clk 0:00:04]} 60. Ra7 {[%clk 0:00:12]}  Rd8 {[%clk 0:00:03]} 61. Ra8# {[%clk 0:00:12]} 1-0


[Site "https://www.chess.com"]

[Event "Titled Tuesday Blitz March 22 Early 2022"]
[White "Kulkarni, Rakesh"]
[Black "Yeletsky, Ivan"]
[WhiteFideId "5037077"]
[BlackFideId "24180327"]
[WhiteElo "2246"]
[BlackElo "2303"]
[Result "0-1"]
[Round "04"]
[TimeControl "180+1"]
[Date "2022.03.22"]
[WhiteClock "0:00:20"]
[BlackClock "0:00:58"]

1. e4 {[%clk 0:02:47]}  e5 {[%clk 0:02:58]} 2. d4 {[%clk 0:02:46]}  exd4 {[%clk 0:02:51]} 3. Qxd4 {[%clk 0:02:45]}  Nc6 {[%clk 0:02:50]} 4. Qe3 {[%clk 0:02:45]}  Nf6 {[%clk 0:02:47]} 5. Nc3 {[%clk 0:02:44]}  Bb4 {[%clk 0:02:46]} 6. Bd2 {[%clk 0:02:38]}  O-O {[%clk 0:02:46]} 7. O-O-O {[%clk 0:02:38]}  Re8 {[%clk 0:02:47]} 8. Qg3 {[%clk 0:02:39]}  Rxe4 {[%clk 0:02:47]} 9. a3 {[%clk 0:02:38]}  Bd6 {[%clk 0:02:45]} 10. f4 {[%clk 0:02:38]}  Bc5 {[%clk 0:02:38]} 11. Bd3 {[%clk 0:02:36]}  d5 {[%clk 0:02:37]} 12. Nxe4 {[%clk 0:02:25]}  dxe4 {[%clk 0:02:36]} 13. Bc4 {[%clk 0:02:22]}  Qe7 {[%clk 0:02:15]} 14. Bc3 {[%clk 0:01:55]}  Ng4 {[%clk 0:01:56]} 15. Nh3 {[%clk 0:01:52]}  Be6 {[%clk 0:01:38]} 16. Bxe6 {[%clk 0:01:43]}  Qxe6 {[%clk 0:01:38]} 17. Rhe1 {[%clk 0:01:36]}  h6 {[%clk 0:01:27]} 18. f5 {[%clk 0:01:08]}  Qxf5 {[%clk 0:01:22]} 19. Rf1 {[%clk 0:01:09]}  Qe6 {[%clk 0:01:18]} 20. Nf4 {[%clk 0:01:00]}  Qa2 {[%clk 0:01:17]} 21. b4 {[%clk 0:00:33]}  Be3+ {[%clk 0:01:12]} 22. Rd2 {[%clk 0:00:31]}  Qxa3+ {[%clk 0:01:12]} 23. Bb2 {[%clk 0:00:28]}  Bxd2+ {[%clk 0:01:12]} 24. Kxd2 {[%clk 0:00:26]}  Qxb2 {[%clk 0:01:12]} 25. Qxg4 {[%clk 0:00:26]}  Rd8+ {[%clk 0:01:13]} 26. Ke1 {[%clk 0:00:24]}  e3 {[%clk 0:01:07]} 27. Nh5 {[%clk 0:00:23]}  Qc3+ {[%clk 0:00:56]} 28. Ke2 {[%clk 0:00:20]}  Rd2+ {[%clk 0:00:57]} 29. Kf3 {[%clk 0:00:20]}  Ne5+ {[%clk 0:00:58]} 0-1


[Site "https://www.chess.com"]

[Event "Titled Tuesday Blitz March 22 Early 2022"]
[White "Mangialardo, Tiago Carvalho"]
[Black "Kotepalli, Sai Nirupama"]
[WhiteFideId "2130718"]
[BlackFideId "5039444"]
[WhiteElo "2083"]
[BlackElo "2382"]
[Result "0-1"]
[Round "04"]
[TimeControl "180+1"]
[Date "2022.03.22"]
[WhiteClock "0:00:03"]
[BlackClock "0:01:07"]

1. e4 {[%clk 0:02:58]}  c5 {[%clk 0:02:58]} 2. Nf3 {[%clk 0:02:58]}  e6 {[%clk 0:02:57]} 3. d4 {[%clk 0:02:58]}  cxd4 {[%clk 0:02:51]} 4. Nxd4 {[%clk 0:02:59]}  Nf6 {[%clk 0:02:42]} 5. Nc3 {[%clk 0:02:58]}  Nc6 {[%clk 0:02:31]} 6. Be3 {[%clk 0:02:44]}  Bb4 {[%clk 0:02:28]} 7. Bd3 {[%clk 0:02:42]}  d5 {[%clk 0:02:24]} 8. O-O {[%clk 0:01:25]}  Bxc3 {[%clk 0:02:06]} 9. bxc3 {[%clk 0:01:14]}  O-O {[%clk 0:01:57]} 10. exd5 {[%clk 0:01:05]}  Qxd5 {[%clk 0:01:47]} 11. Qf3 {[%clk 0:00:58]}  e5 {[%clk 0:01:43]} 12. Qxd5 {[%clk 0:00:18]}  Nxd5 {[%clk 0:01:38]} 13. Nb5 {[%clk 0:00:16]}  a6 {[%clk 0:01:36]} 14. Nd6 {[%clk 0:00:05]}  Nxc3 {[%clk 0:01:34]} 15. Bd2 {[%clk 0:00:03]}  Nd5 {[%clk 0:01:33]} 16. Nxc8 {[%clk 0:00:03]}  Raxc8 {[%clk 0:01:31]} 17. Rab1 {[%clk 0:00:04]}  b5 {[%clk 0:01:30]} 18. Rfe1 {[%clk 0:00:03]}  Rfe8 {[%clk 0:01:28]} 19. Be4 {[%clk 0:00:03]}  Nf6 {[%clk 0:01:26]} 20. Bd3 {[%clk 0:00:03]}  Nd4 {[%clk 0:01:24]} 21. Rb2 {[%clk 0:00:02]}  e4 {[%clk 0:01:22]} 22. Bf1 {[%clk 0:00:01]}  Nxc2 {[%clk 0:01:20]} 23. Rc1 {[%clk 0:00:01]}  Nd4 {[%clk 0:01:19]} 24. Re1 {[%clk 0:00:01]}  h6 {[%clk 0:01:12]} 25. Bb4 {[%clk 0:00:02]}  Nc2 {[%clk 0:01:10]} 26. Re2 {[%clk 0:00:01]}  Nxb4 {[%clk 0:01:08]} 27. Rxb4 {[%clk 0:00:02]}  Rc1 {[%clk 0:01:07]} 28. g3 {[%clk 0:00:02]}  Rd8 {[%clk 0:01:07]} 29. Kg2 {[%clk 0:00:03]}  Rdd1 {[%clk 0:01:07]} 0-1


[Site "https://www.chess.com"]

[Event "Titled Tuesday Blitz March 22 Early 2022"]
[White "Manolache, Marius"]
[Black "Dixit, Nikhil"]
[WhiteFideId "1201530"]
[BlackFideId "5059534"]
[WhiteElo "2389"]
[BlackElo "2223"]
[Result "1/2-1/2"]
[Round "04"]
[TimeControl "180+1"]
[Date "2022.03.22"]
[WhiteClock "0:01:03"]
[BlackClock "0:00:21"]

1. d4 {[%clk 0:03:00]}  Nf6 {[%clk 0:02:59]} 2. c4 {[%clk 0:03:00]}  g6 {[%clk 0:02:59]} 3. Nc3 {[%clk 0:03:00]}  Bg7 {[%clk 0:03:00]} 4. e4 {[%clk 0:03:00]}  d6 {[%clk 0:03:00]} 5. f3 {[%clk 0:02:59]}  O-O {[%clk 0:03:00]} 6. Be3 {[%clk 0:02:59]}  c5 {[%clk 0:03:00]} 7. Nge2 {[%clk 0:02:58]}  Nc6 {[%clk 0:02:59]} 8. Qd2 {[%clk 0:02:55]}  a6 {[%clk 0:02:49]} 9. Rd1 {[%clk 0:02:51]}  cxd4 {[%clk 0:02:45]} 10. Nxd4 {[%clk 0:02:51]}  Nxd4 {[%clk 0:02:41]} 11. Bxd4 {[%clk 0:02:50]}  Bd7 {[%clk 0:02:38]} 12. a3 {[%clk 0:02:46]}  Qa5 {[%clk 0:02:22]} 13. Be2 {[%clk 0:02:41]}  b5 {[%clk 0:02:00]} 14. c5 {[%clk 0:02:40]}  Be6 {[%clk 0:01:39]} 15. cxd6 {[%clk 0:02:36]}  exd6 {[%clk 0:01:30]} 16. O-O {[%clk 0:02:34]}  b4 {[%clk 0:01:20]} 17. Nd5 {[%clk 0:02:11]}  Nxd5 {[%clk 0:01:06]} 18. Bxg7 {[%clk 0:02:10]}  Kxg7 {[%clk 0:01:06]} 19. exd5 {[%clk 0:02:11]}  Qb6+ {[%clk 0:01:06]} 20. Kh1 {[%clk 0:02:10]}  Bd7 {[%clk 0:01:02]} 21. axb4 {[%clk 0:01:57]}  Rfb8 {[%clk 0:01:00]} 22. Qc3+ {[%clk 0:01:56]}  Kg8 {[%clk 0:00:57]} 23. Rd4 {[%clk 0:01:56]}  Bb5 {[%clk 0:00:48]} 24. Bc4 {[%clk 0:01:44]}  Bxc4 {[%clk 0:00:46]} 25. Rxc4 {[%clk 0:01:44]}  Qb5 {[%clk 0:00:44]} 26. Rd1 {[%clk 0:01:43]}  Re8 {[%clk 0:00:42]} 27. Qd3 {[%clk 0:01:36]}  Rac8 {[%clk 0:00:35]} 28. b3 {[%clk 0:01:22]}  Rxc4 {[%clk 0:00:26]} 29. Qxc4 {[%clk 0:01:22]}  Rb8 {[%clk 0:00:26]} 30. Rd4 {[%clk 0:01:13]}  Qxc4 {[%clk 0:00:21]} 31. Rxc4 {[%clk 0:01:12]}  Rb5 {[%clk 0:00:21]} 32. Rd4 {[%clk 0:01:11]}  a5 {[%clk 0:00:22]} 33. bxa5 {[%clk 0:01:11]}  Rxb3 {[%clk 0:00:22]} 34. h4 {[%clk 0:01:10]}  Ra3 {[%clk 0:00:21]} 35. Kh2 {[%clk 0:01:08]}  Rxa5 {[%clk 0:00:21]} 36. g4 {[%clk 0:01:08]}  h6 {[%clk 0:00:20]} 37. g5 {[%clk 0:01:08]}  hxg5 {[%clk 0:00:20]} 38. hxg5 {[%clk 0:01:08]}  Kf8 {[%clk 0:00:21]} 39. Kg3 {[%clk 0:01:07]}  Ra1 {[%clk 0:00:21]} 40. Kf4 {[%clk 0:01:07]}  Re1 {[%clk 0:00:21]} 41. Rb4 {[%clk 0:01:03]}  Rd1 {[%clk 0:00:21]} 42. Ke4 {[%clk 0:01:02]}  Re1+ {[%clk 0:00:21]} 43. Kf4 {[%clk 0:01:02]}  Rd1 {[%clk 0:00:21]} 44. Ke4 {[%clk 0:01:02]}  Re1+ {[%clk 0:00:21]} 45. Kf4 {[%clk 0:01:03]} 1/2-1/2


[Site "https://www.chess.com"]